bitfinex-derivatives/quotes_SOLF0:USTF0_20250113
["timestamp","ask_amount","ask_price","bid_price","bid_amount"]
[1736763974528,1.6733,179.03,179.0,2.7954]
[1736763974928,1.6733,179.03,178.92,1.6426]
[1736763975430,21.48755682,179.01,178.92,1.6426]
[1736763975638,21.48755682,179.01,178.88,21.48755682]
[1736763976243,1.6733,179.03,178.91,21.48755682]
[1736763976435,1.6733,179.03,178.88,21.48755682]
[1736763976738,2.7954,179.0,178.95,2.7961]
[1736763977129,2.7957,178.99,178.92,2.7966]
[1736763977329,2.7957,178.99,178.88,21.48755682]
[1736763977636,1.6733,179.03,178.88,21.48755682]
[1736763978132,1.6733,179.03,178.97,2.7958]
[1736763978430,1.6733,179.03,178.91,21.48755682]
[1736763978630,1.6733,179.03,178.88,21.48755682]
[1736763978825,2.7956,178.99,178.92,2.7966]
[1736763979036,21.48755682,179.01,178.88,21.48755682]
[1736763979431,2.7954,179.01,178.88,21.48755682]
[1736763980237,2.7954,179.01,178.96,2.796]
[1736763981135,1.6733,179.03,178.88,21.48755682]
[1736763981434,1.6733,179.03,178.91,21.48755682]
[1736763981837,21.48755682,179.01,178.85,1.5565]
[1736763982034,1.6733,179.03,178.85,1.5565]
[1736763982035,21.48755682,178.98,178.85,1.5565]
[1736763982438,21.48755682,178.95,178.79,99.44846719]
[1736763982633,21.48755682,178.92,178.79,99.44846719]
[1736763982836,21.48755682,178.92,178.79,77.96091037]
[1736763984237,2.7971,178.9,178.84,2.7979]
[1736763984442,21.48755682,178.92,178.79,77.96091037]
[1736763985246,2.7972,178.89,178.83,2.7979]
[1736763985441,21.48755682,178.92,178.79,77.96091037]
[1736763985944,24.28435682,178.92,178.79,99.44846719]
[1736763986645,2.7969,178.91,178.85,2.7977]
[1736763987443,2.7969,178.91,178.86,2.7976]
[1736763988045,2.7969,178.91,178.84,2.7978]
[1736763988344,21.48755682,178.92,178.79,77.96091037]
[1736763988345,2.797,178.9,178.79,77.96091037]
[1736763988545,21.48755682,178.92,178.79,77.96091037]
[1736763988844,21.48755682,178.92,178.84,2.7979]
[1736763989348,21.48755682,178.92,178.79,77.96091037]
[1736763989542,21.48755682,178.92,178.85,2.7977]
[1736763989846,5.0512,178.94,178.81,21.48755682]
[1736763990041,5.0512,178.94,178.84,21.48755682]
[1736763990247,3.344,178.94,178.84,21.48755682]
[1736763990447,6.74,178.96,178.84,21.48755682]
[1736763990655,6.74,178.96,178.87,21.48755682]
[1736763991047,6.74,178.96,178.85,3.3189]
[1736763991547,9.5361,178.96,178.9,2.7969]
[1736763991946,9.5361,178.96,178.85,3.3189]
[1736763992140,2.7961,178.96,178.85,3.3189]
[1736763992341,2.7963,178.95,178.85,3.3189]
[1736763992647,28.20755682,178.98,178.85,3.3189]
[1736763992851,2.7965,178.93,178.87,2.7973]
[1736763993052,2.7965,178.93,178.85,3.3189]
[1736763993453,28.20755682,178.98,178.85,3.3189]
[1736763993650,2.7962,178.95,178.9,2.7969]
[1736763994448,2.7962,178.95,178.85,3.3189]
[1736763994449,28.20755682,178.98,178.85,3.3189]
[1736763995050,21.48755682,178.95,178.79,77.96091037]
[1736763995256,21.48755682,178.95,178.8,1.6859]
[1736763995550,21.48755682,178.95,178.84,2.7978]
[1736763995551,2.797,178.9,178.84,2.7978]
[1736763996050,21.48755682,178.92,178.83,2.798]
[1736763996250,3.2863,178.91,178.83,2.798]
[1736763996452,6.7,178.9,178.76,1.6256]
[1736763996752,6.7,178.9,178.74,21.48755682]
[1736763996753,2.7981,178.83,178.78,2.7988]
[1736763997351,21.48755682,178.86,178.73,1.5903]
[1736763997655,2.7983,178.82,178.76,2.799]
[1736763998056,2.7981,178.84,178.78,2.7987]
[1736763998250,21.48755682,178.86,178.78,2.7987]
[1736763998647,2.7979,178.85,178.79,2.7987]
[1736763998852,21.48755682,178.86,178.79,2.7987]
[1736763999053,21.48755682,178.89,178.79,2.7987]
[1736763999760,21.48755682,178.89,178.74,21.48755682]
[1736763999959,8.2936,178.9,178.77,21.48755682]
[1736764000462,8.2936,178.9,178.8,2.7984]
[1736764000759,8.2936,178.9,178.77,21.48755682]
[1736764001058,2.7976,178.87,178.81,2.7983]
[1736764001654,2.7982,178.83,178.77,2.7989]
[1736764001856,2.7982,178.83,178.75,1.6983]
[1736764002461,21.48755682,178.88,178.75,1.6983]
[1736764003461,8.2936,178.9,178.76,21.48755682]
[1736764003860,2.7973,178.88,178.82,2.7981]
[1736764004061,8.2936,178.9,178.76,21.48755682]
[1736764004462,2.7975,178.87,178.82,2.7981]
[1736764006159,8.2536,178.9,178.76,21.48755682]
[1736764006365,2.7982,178.83,178.76,21.48755682]
[1736764006568,8.2536,178.9,178.76,21.48755682]
[1736764006960,2.7977,178.86,178.8,2.7984]
[1736764007160,8.2536,178.9,178.8,2.7984]
[1736764007361,2.7976,178.86,178.81,2.7982]
[1736764009371,2.7975,178.87,178.83,2.7981]
[1736764010066,2.7973,178.88,178.83,2.7981]
[1736764011871,2.7974,178.87,178.83,2.7981]
[1736764013067,2.7982,178.83,178.78,2.7988]
[1736764013268,2.7982,178.83,178.74,23.15535682]
[1736764013469,21.48755682,178.88,178.74,23.15535682]
[1736764013659,2.7978,178.85,178.81,2.7983]
[1736764014167,8.2336,178.9,178.74,23.15535682]
[1736764014564,8.2336,178.9,178.81,2.7983]
[1736764015161,8.2336,178.9,178.79,2.7986]
[1736764015362,8.2336,178.9,178.74,23.15535682]
[1736764015563,21.48755682,178.85,178.62,96.02]
[1736764015757,21.48755682,178.85,178.74,2.7994]
[1736764015961,21.48755682,178.85,178.71,21.48755682]
[1736764016158,21.48755682,178.85,178.72,1.6119]
[1736764016358,21.48755682,178.88,178.72,1.6119]
[1736764016571,21.48755682,178.88,178.74,21.48755682]
[1736764017070,2.7978,178.85,178.74,21.48755682]
[1736764017263,21.48755682,178.88,178.74,21.48755682]
[1736764017663,2.7976,178.86,178.8,2.7984]
[1736764018365,21.48755682,178.88,178.77,2.7989]
[1736764018663,21.48755682,178.88,178.74,21.48755682]
[1736764018868,2.798,178.84,178.79,2.7986]
[1736764019461,8.2336,178.9,178.79,2.7986]
[1736764020066,1.5936,178.9,178.81,2.7983]
[1736764020264,1.5936,178.9,178.77,21.48755682]
[1736764020676,1.5936,178.9,178.8,21.48755682]
[1736764021273,1.5936,178.9,178.85,2.7976]
[1736764021471,4.3906,178.9,178.85,2.7976]
[1736764021673,4.3906,178.9,178.8,21.48755682]
[1736764021974,1.5936,178.9,178.86,2.7976]
[1736764022468,1.5936,178.9,178.8,21.48755682]
[1736764022669,1.5936,178.9,178.85,2.7977]
[1736764022875,4.3907,178.9,178.85,2.7977]
[1736764023771,21.48755682,178.95,178.75,6.62]
[1736764023972,1.6976,178.98,178.86,21.48755682]
[1736764024378,4.4933,178.98,178.86,21.48755682]
[1736764024670,1.6976,178.98,178.86,21.48755682]
[1736764024980,2.796,178.97,178.92,2.7966]
[1736764025564,23.18515682,178.98,178.82,1.6329]
[1736764025765,21.48755682,178.95,178.82,1.6329]
[1736764026365,1.6976,178.98,178.82,1.6329]
[1736764026569,2.7966,178.93,178.88,2.7972]
[1736764027077,2.7966,178.93,178.87,2.7973]
[1736764027577,21.48755682,178.95,178.87,2.7973]
[1736764027874,2.7967,178.92,178.87,2.7973]
[1736764028267,2.7967,178.92,178.82,1.6329]
[1736764028268,2.7964,178.94,178.89,2.7971]
[1736764028467,112.55307036,178.98,178.83,21.48755682]
[1736764028667,21.48755682,178.92,178.81,1.6946]
[1736764028971,21.48755682,178.95,178.85,2.7977]
[1736764029179,21.48755682,178.95,178.81,1.6946]
[1736764029375,23.18515682,178.98,178.89,2.7971]
[1736764029676,6.62,178.97,178.83,21.48755682]
[1736764030072,2.7965,178.93,178.87,2.7974]
[1736764030578,21.48755682,178.95,178.81,1.6946]
[1736764030876,1.596,178.92,178.81,1.6946]
[1736764031072,2.7972,178.89,178.84,2.7978]
[1736764031973,2.7972,178.89,178.85,2.7977]
[1736764032773,2.797,178.9,178.85,2.7977]
[1736764033274,1.6674,178.91,178.81,1.6946]
[1736764033479,1.6674,178.91,178.87,2.7974]
[1736764034570,4.4643,178.91,178.86,2.7976]
[1736764034775,4.4643,178.91,178.81,1.6946]
[1736764034776,1.6674,178.91,178.81,1.6946]
[1736764034976,2.7976,178.87,178.77,21.48755682]
[1736764035275,1.6674,178.91,178.77,21.48755682]
[1736764035276,6.6,178.89,178.77,21.48755682]
[1736764036381,6.6,178.89,178.84,2.7978]
[1736764036678,6.6,178.89,178.77,21.48755682]
[1736764036878,6.6,178.89,178.8,21.48755682]
[1736764037271,9.3972,178.89,178.84,2.7978]
[1736764037475,9.3972,178.89,178.8,21.48755682]
[1736764037671,6.6,178.89,178.8,21.48755682]
[1736764037976,1.6185,178.9,178.8,21.48755682]
[1736764038174,2.7973,178.88,178.84,2.7978]
[1736764038377,1.6185,178.9,178.8,21.48755682]
[1736764038781,4.4155,178.9,178.86,2.7975]
[1736764039378,1.6674,178.91,178.88,2.7972]
[1736764039577,1.6674,178.91,178.8,21.48755682]
[1736764039774,1.6887,178.94,178.83,21.48755682]
[1736764039969,3.1331,179.0,178.86,21.48755682]
[1736764040174,6.58,178.99,178.86,21.48755682]
[1736764040377,8.1603,178.99,178.86,21.48755682]
[1736764040579,2.7958,178.98,178.93,2.7964]
[1736764040775,2.7958,178.98,178.86,21.48755682]
[1736764040980,8.1603,178.99,178.89,21.48755682]
[1736764041478,3.2272,179.0,178.89,21.48755682]
[1736764041677,3.2272,179.0,178.91,21.48755682]
[1736764041873,6.58,179.03,178.91,21.48755682]
[1736764042281,9.375,179.03,178.98,2.7957]
[1736764042681,6.0323,179.06,179.01,2.7952]
[1736764042880,3.2378,179.06,178.94,21.48755682]
[1736764043090,8.1486,179.09,178.97,21.48755682]
[1736764043377,8.1486,179.09,179.0,21.48755682]
[1736764043583,6.58,179.09,178.97,21.48755682]
[1736764043782,1.6591,179.08,178.97,21.48755682]
[1736764043977,4.4534,179.08,179.01,2.7951]
[1736764044183,4.4534,179.08,178.97,21.48755682]
[1736764044383,1.6591,179.08,178.97,21.48755682]
[1736764044878,1.6591,179.08,178.94,21.48755682]
[1736764045081,21.48755682,179.07,178.92,1.7046]
[1736764045275,2.7954,179.01,178.92,1.7046]
[1736764045474,21.48755682,179.07,178.92,1.7046]
[1736764045674,21.48755682,179.07,178.95,2.796]
[1736764045675,2.7953,179.02,178.95,2.796]
[1736764045983,21.48755682,179.07,178.92,1.7046]
[1736764046185,1.6591,179.08,178.92,1.7046]
[1736764046380,21.48755682,179.04,178.92,1.7046]
[1736764046580,1.5594,179.03,178.88,21.48755682]
[1736764046885,21.48755682,179.01,178.89,2.797]
[1736764047078,9.8534,179.0,178.89,2.797]
[1736764047284,9.8534,179.0,178.87,1.69]
[1736764048188,2.7959,178.97,178.91,2.7967]
[1736764048682,6.0488,179.0,178.94,2.7962]
[1736764048983,3.2534,179.0,178.91,21.48755682]
[1736764049781,8.1394,179.03,178.91,21.48755682]
[1736764050385,8.1394,179.03,178.88,1.5809]
[1736764050587,8.1394,179.03,178.91,21.48755682]
[1736764051285,2.7953,179.01,178.96,2.7959]
[1736764051480,8.1394,179.03,178.96,2.7959]
[1736764052084,8.1394,179.03,178.91,21.48755682]
[1736764052281,2.7951,179.02,178.97,2.7959]
[1736764054288,8.1394,179.03,178.91,21.48755682]
[1736764054491,6.58,179.03,178.99,2.7956]
[1736764054890,6.58,179.03,178.94,21.48755682]
[1736764055193,3.3639,179.06,178.97,21.48755682]
[1736764055483,1.6233,179.09,179.06,2.7945]
[1736764055687,6.54,179.11,179.0,21.48755682]
[1736764055879,6.54,179.11,178.97,21.48755682]
[1736764056291,6.54,179.11,179.01,2.7952]
[1736764056591,21.48755682,179.1,178.96,1.6613]
[1736764056791,21.48755682,179.07,178.95,1.6444]
[1736764057194,2.7951,179.03,178.97,2.7959]
[1736764057793,9.3351,179.03,178.97,2.7959]
[1736764058394,2.7951,179.03,178.97,2.7959]
[1736764059997,6.54,179.04,178.95,2.7961]
[1736764060291,6.54,179.04,178.85,21.48755682]
[1736764060292,21.48755682,179.01,178.85,21.48755682]
[1736764060795,21.48755682,179.01,178.9,2.7969]
[1736764061090,21.48755682,179.01,178.88,21.48755682]
[1736764061285,2.7959,178.98,178.92,2.7965]
[1736764061488,2.7959,178.98,178.88,21.48755682]
[1736764062298,2.7959,178.98,178.93,2.7964]
[1736764062796,5.0354,179.03,178.91,2.7967]
[1736764062993,21.48755682,179.01,178.85,21.48755682]
[1736764063596,2.7963,178.95,178.9,2.797]
[1736764063998,6.52,178.96,178.85,21.48755682]
[1736764064199,6.52,178.96,178.92,2.7966]
[1736764064401,5.0354,179.03,178.9,21.48755682]
[1736764064597,6.52,179.01,178.9,21.48755682]
[1736764064793,2.7959,178.97,178.9,21.48755682]
[1736764064990,6.52,179.01,178.9,21.48755682]
[1736764065500,2.7961,178.96,178.9,21.48755682]
[1736764065898,2.7963,178.95,178.9,2.797]
[1736764066294,21.48755682,178.98,178.85,21.48755682]
[1736764066494,2.7967,178.92,178.87,2.7973]
[1736764066693,21.48755682,178.98,178.84,1.6876]
[1736764067499,2.7973,178.88,178.79,21.48755682]
[1736764068100,6.52,178.91,178.84,2.7979]
[1736764068291,2.7972,178.89,178.79,21.48755682]
[1736764068796,2.7977,178.86,178.78,1.6597]
[1736764069300,6.52,178.91,178.78,1.6597]
[1736764069501,2.7971,178.9,178.8,21.48755682]
[1736764070001,2.7971,178.9,178.85,2.7977]
[1736764070405,14.2212,178.94,178.83,21.48755682]
[1736764070603,14.2212,178.94,178.89,2.7971]
[1736764070903,2.7965,178.93,178.89,2.7971]
[1736764071295,11.4247,178.94,178.83,21.48755682]
[1736764071604,8.2263,178.94,178.86,21.48755682]
[1736764071805,6.52,178.94,178.86,21.48755682]
[1736764072007,6.52,178.94,178.88,2.7972]
[1736764072306,6.52,178.94,178.86,21.48755682]
[1736764072602,2.796,178.97,178.92,2.7965]
[1736764072900,6.5,178.99,178.92,2.7965]
[1736764073404,351.24083938,179.08,178.96,2.796]
[1736764073603,3.2619,179.05,178.93,21.48755682]
[1736764073806,2.795,179.03,178.93,21.48755682]
[1736764074006,2.795,179.03,178.98,2.7957]
[1736764074305,2.7952,179.02,178.93,21.48755682]
[1736764074505,6.5,179.04,178.94,2.7963]
[1736764074701,6.5,179.04,178.9,21.48755682]
[1736764074895,2.7957,178.99,178.9,21.48755682]
[1736764075394,2.7957,178.99,178.93,2.7965]
[1736764076000,2.7957,178.99,178.94,2.7963]
[1736764076397,21.48755682,179.02,178.87,21.48755682]
[1736764076808,21.48755682,178.99,178.84,23.11925682]
[1736764076999,2.7965,178.94,178.88,2.7972]
[1736764077203,2.7965,178.94,178.84,23.11925682]
[1736764078111,2.7962,178.95,178.84,23.11925682]
[1736764078704,6.5,178.96,178.84,23.11925682]
[1736764078909,27.98755682,178.96,178.81,21.48755682]
[1736764079109,1.6906,178.95,178.83,2.7981]
[1736764079310,1.6906,178.95,178.78,23.14725682]
[1736764079511,2.7971,178.9,178.78,23.14725682]
[1736764080107,2.7971,178.9,178.86,2.7975]
[1736764080303,1.6906,178.95,178.86,2.7975]
[1736764080507,2.7968,178.92,178.81,21.48755682]
[1736764081411,2.7968,178.92,178.87,2.7973]
[1736764081613,2.7964,178.94,178.84,21.48755682]
[1736764081911,1.6906,178.95,178.84,21.48755682]
[1736764082309,2.7962,178.95,178.84,21.48755682]
[1736764082514,1.5444,178.97,178.87,21.48755682]
[1736764082915,4.3404,178.97,178.92,2.7965]
[1736764083310,6.48,178.98,178.92,2.7966]
[1736764083509,6.48,178.98,178.9,21.48755682]
[1736764083709,11.2914,179.03,178.93,21.48755682]
[1736764083914,2.7953,179.01,178.96,2.7959]
[1736764084318,21.48755682,179.02,178.89,1.5919]
[1736764084519,2.7957,178.99,178.89,1.5919]
[1736764085018,2.7957,178.99,178.94,2.7963]
[1736764085507,2.7953,179.01,178.96,2.7959]
[1736764085709,11.2914,179.03,178.9,21.48755682]
[1736764085913,21.48755682,179.08,178.93,21.48755682]
[1736764086208,2.7946,179.06,178.99,2.7955]
[1736764086413,27.98755682,179.08,178.93,21.48755682]
[1736764086613,21.48755682,179.05,178.93,21.48755682]
[1736764086809,21.48755682,179.05,178.9,21.48755682]
[1736764087012,2.7955,179.0,178.9,21.48755682]
[1736764087318,21.48755682,179.05,178.9,21.48755682]
[1736764087617,2.7952,179.02,178.96,2.7959]
[1736764088010,2.7953,179.01,178.95,2.7961]
[1736764088212,2.7953,179.01,178.85,5.5954]
[1736764088213,6.66,179.0,178.76,177.11402804]
[1736764088412,21.48755682,178.9,178.67,7.77371691]
[1736764088713,11.5934,179.0,178.71,2.7999]
[1736764088714,21.48755682,178.81,178.71,2.7999]
[1736764088908,9.0026,178.8,178.67,7.77371691]
[1736764089118,9.0026,178.8,178.56,7.77371691]
[1736764089119,1.5626,178.8,178.56,7.77371691]
[1736764089313,1.5626,178.8,178.57,8.60000896]
[1736764089314,4.3612,178.8,178.57,8.60000896]
[1736764089618,1.5626,178.8,178.69,21.48755682]
[1736764089821,1.5626,178.8,178.68,21.48755682]
[1736764090215,1.5626,178.8,178.57,1.12000896]
[1736764090411,1.5626,178.8,178.74,2.7994]
[1736764090615,10.8908,178.89,178.58,7.8]
[1736764090818,1.6144,178.88,178.59,1.11988353]
[1736764091217,21.48755682,178.87,178.59,1.11988353]
[1736764091515,1.6144,178.88,178.59,1.11988353]
[1736764091909,2.7984,178.81,178.73,2.7996]
[1736764092111,1.6144,178.88,178.59,1.11988353]
[1736764092321,1.6144,178.88,178.76,21.48755682]
[1736764092519,2.7976,178.86,178.65,21.48755682]
[1736764092713,2.7976,178.86,178.77,21.48755682]
[1736764093019,6.168,178.89,178.66,3.1956]
[1736764093214,3.3708,178.89,178.82,21.48755682]
[1736764093420,1.6857,178.89,178.82,21.48755682]
[1736764093612,1.6832,178.92,178.83,2.798]
[1736764093817,1.6832,178.92,178.82,21.48755682]
[1736764094018,1.6832,178.92,178.88,2.7972]
[1736764094218,3.3508,178.96,178.88,2.7972]
[1736764094419,3.3508,178.96,178.85,21.48755682]
[1736764094612,1.6808,178.96,178.88,21.48755682]
[1736764094819,1.6808,178.96,178.83,21.48755682]
[1736764095117,1.6808,178.96,178.85,2.7976]
[1736764095320,21.48755682,178.94,178.77,21.48755682]
[1736764095525,21.48755682,178.91,178.77,21.48755682]
[1736764096022,21.48755682,178.91,178.74,21.48755682]
[1736764096225,2.7976,178.86,178.79,2.7987]
[1736764096825,9.54,178.89,178.79,2.7987]
[1736764097027,23.18245682,178.88,178.74,21.48755682]
[1736764097229,23.18245682,178.88,178.71,21.48755682]
[1736764097426,2.7984,178.83,178.71,21.48755682]
[1736764097825,23.18245682,178.88,178.76,2.7994]
[1736764098028,2.7978,178.87,178.74,21.48755682]
[1736764098230,1.6949,178.88,178.74,21.48755682]
[1736764098630,23.18245682,178.88,178.74,21.48755682]
[1736764098826,21.48755682,178.85,178.71,21.48755682]
[1736764099026,3.24,178.84,178.68,21.48755682]
[1736764099234,21.48755682,178.82,178.71,2.8002]
[1736764099536,21.48755682,178.82,178.68,21.48755682]
[1736764099730,6.0383,178.84,178.75,2.7996]
[1736764100029,3.24,178.84,178.71,21.48755682]
[1736764100437,2.7983,178.83,178.76,2.7993]
[1736764100929,3.24,178.84,178.68,21.48755682]
[1736764101126,21.48755682,178.82,178.68,21.48755682]
[1736764103334,2.7991,178.78,178.71,2.8001]
[1736764103533,21.48755682,178.82,178.71,2.8001]
[1736764104035,21.48755682,178.82,178.68,21.48755682]
[1736764104235,2.7987,178.81,178.68,21.48755682]
[1736764104431,3.24,178.84,178.71,21.48755682]
[1736764104839,2.7988,178.81,178.71,21.48755682]
[1736764105336,3.24,178.84,178.71,21.48755682]
[1736764105635,2.7986,178.82,178.71,21.48755682]
[1736764105837,3.24,178.84,178.71,21.48755682]
[1736764106131,2.7987,178.81,178.71,21.48755682]
[1736764106346,3.24,178.84,178.73,2.7997]
[1736764106635,2.7996,178.75,178.66,3.1956]
[1736764106941,30.74755682,178.79,178.66,3.1956]
[1736764107236,2.7991,178.78,178.68,21.48755682]
[1736764107429,9.26,178.79,178.68,21.48755682]
[1736764108436,9.26,178.79,178.66,3.1956]
[1736764108647,2.8001,178.72,178.66,2.801]
[1736764108838,23.03615682,178.78,178.61,23.12255682]
[1736764109239,2.8001,178.72,178.66,2.8009]
[1736764109644,2.8001,178.72,178.61,23.12255682]
[1736764109937,23.03615682,178.78,178.61,23.12255682]
[1736764110445,2.8001,178.72,178.61,23.12255682]
[1736764111240,21.48755682,178.72,178.56,21.48755682]
[1736764111535,1.7098,178.71,178.57,3.2576]
[1736764111945,2.8005,178.69,178.64,2.8012]
[1736764112135,1.7098,178.71,178.59,22.60744035]
[1736764112340,1.7098,178.71,178.59,1.11988353]
[1736764112546,2.8006,178.69,178.63,2.8014]
[1736764114443,2.801,178.66,178.61,2.8017]
[1736764114641,1.5457,178.68,178.59,1.11988353]
[1736764114836,1.5457,178.68,178.48,5.6075]
[1736764115041,21.48755682,178.6,178.44,21.48755682]
[1736764115241,21.48755682,178.63,178.47,21.48755682]
[1736764115737,9.04,178.62,178.41,3.352]
[1736764115940,9.04,178.62,178.48,21.48755682]
[1736764116243,9.04,178.62,178.41,3.352]
[1736764116449,9.04,178.62,178.46,21.48755682]
[1736764116748,21.48755682,178.58,178.42,21.48755682]
[1736764117047,11.8418,178.62,178.54,2.8028]
[1736764117347,30.52755682,178.62,178.48,21.48755682]
[1736764117543,2.8023,178.58,178.51,2.8033]
[1736764117743,9.04,178.62,178.48,21.48755682]
[1736764118548,2.8019,178.6,178.54,2.8028]
[1736764119243,21.48755682,178.61,178.42,1.6247]
[1736764119444,21.48755682,178.61,178.44,21.48755682]
[1736764120245,2.8021,178.59,178.49,2.8036]
[1736764120444,2.8021,178.59,178.5,1.5575]
[1736764120647,21.48755682,178.61,178.51,1.6091]
[1736764120845,2.8024,178.58,178.52,2.8031]
[1736764121048,2.8024,178.58,178.51,1.6091]
[1736764121249,3.2488,178.64,178.51,1.6091]
[1736764121446,12.1688,178.64,178.56,2.8024]
[1736764121644,12.1688,178.64,178.52,1.6949]
[1736764121841,2.8022,178.59,178.54,2.8028]
[1736764122045,21.48755682,178.62,178.52,1.6949]
[1736764122247,21.48755682,178.62,178.51,1.6091]
[1736764122452,2.8025,178.57,178.51,4.4124]
[1736764122754,21.48755682,178.56,178.46,1.6949]
[1736764123447,21.48755682,178.53,178.42,3.1908]
[1736764123942,8.86,178.54,178.42,3.1908]
[1736764124949,2.8035,178.5,178.45,2.8042]
[1736764125153,21.48755682,178.53,178.42,3.1908]
[1736764125853,10.5126,178.54,178.42,3.1908]
[1736764126052,2.8032,178.52,178.47,2.8038]
[1736764126247,8.86,178.54,178.42,3.1908]
[1736764126545,8.86,178.54,178.5,2.8034]
[1736764126750,4.4462,178.55,178.5,2.8034]
[1736764126943,21.48755682,178.59,178.43,21.48755682]
[1736764127148,8.78,178.61,178.42,3.1908]
[1736764127351,8.78,178.61,178.52,2.803]
[1736764127553,8.78,178.61,178.46,21.48755682]
[1736764127754,2.8021,178.59,178.54,2.8028]
[1736764128050,1.6524,178.63,178.49,21.48755682]
[1736764128242,2.8016,178.62,178.57,2.8023]
[1736764128441,1.6524,178.63,178.57,2.8023]
[1736764128745,1.6524,178.63,178.49,21.48755682]
[1736764129053,1.6526,178.64,178.58,2.802]
[1736764129247,1.6526,178.64,178.49,21.48755682]
[1736764129449,30.24755682,178.65,178.49,21.48755682]
[1736764130149,21.48755682,178.62,178.49,21.48755682]
[1736764130351,21.48755682,178.62,178.47,1.6086]
[1736764130550,21.48755682,178.62,178.51,2.8032]
[1736764130752,21.48755682,178.62,178.47,1.6086]
[1736764131252,2.8025,178.57,178.52,2.8031]
[1736764131841,21.48755682,178.62,178.47,1.6086]
[1736764132046,21.48755682,178.59,178.47,1.6086]
[1736764132247,1.5993,178.58,178.47,1.6086]
[1736764132647,2.803,178.53,178.48,2.8036]
[1736764132850,1.5993,178.58,178.47,1.6086]
[1736764133251,2.8027,178.55,178.51,2.8033]
[1736764133551,2.8027,178.55,178.47,1.6086]
[1736764133852,1.5814,178.61,178.47,1.6086]
[1736764134054,8.62,178.63,178.52,21.48755682]
[1736764134256,30.10755682,178.65,178.53,3.276]
[1736764135354,2.802,178.6,178.54,2.8028]
[1736764135553,21.48755682,178.62,178.53,3.276]
[1736764136254,2.8022,178.59,178.54,2.8028]
[1736764136654,21.48755682,178.62,178.47,1.6086]
[1736764136852,30.10755682,178.65,178.43,23.07415682]
[1736764137057,21.48755682,178.56,178.43,1.5866]
[1736764137258,2.8034,178.51,178.46,2.804]
[1736764137455,10.2195,178.55,178.46,2.804]
[1736764137757,10.2195,178.55,178.43,23.07415682]
[1736764137958,2.8028,178.54,178.43,23.07415682]
[1736764138353,2.8028,178.54,178.48,2.8037]
[1736764138658,2.803,178.53,178.48,2.8037]
[1736764139357,2.8031,178.53,178.47,2.8039]
[1736764139556,10.2195,178.55,178.43,23.07415682]
[1736764140059,2.8032,178.52,178.48,2.8037]
[1736764140253,2.8032,178.52,178.43,23.07415682]
[1736764140449,2.8032,178.52,178.4,1.7143]
[1736764140664,10.2195,178.55,178.29,177.11402804]
[1736764140848,21.48755682,178.48,178.31,4.9321]
[1736764141054,21.48755682,178.51,178.42,2.8046]
[1736764141256,21.48755682,178.54,178.31,4.9321]
[1736764141562,21.48755682,178.54,178.44,2.8043]
[1736764141754,21.48755682,178.54,178.39,21.48755682]
[1736764141954,2.8035,178.5,178.4,3.2006]
[1736764142150,10.2195,178.55,178.49,2.8036]
[1736764142362,10.2195,178.55,178.42,21.48755682]
[1736764142856,10.2195,178.55,178.45,21.48755682]
[1736764143163,8.56,178.55,178.45,21.48755682]
[1736764143357,3.184,178.58,178.45,21.48755682]
[1736764143859,2.8024,178.57,178.52,2.803]
[1736764144062,2.8024,178.57,178.45,21.48755682]
[1736764144063,8.68,178.6,178.45,21.48755682]
[1736764144357,24.77525682,178.63,178.48,21.48755682]
[1736764144564,3.2877,178.63,178.49,4.8921]
[1736764144854,8.66,178.65,178.51,21.48755682]
[1736764145058,8.66,178.65,178.58,2.8022]
[1736764145461,4.3623,178.64,178.58,2.8022]
[1736764145761,1.561,178.64,178.59,2.802]
[1736764145951,2.8011,178.66,178.54,21.48755682]